fUST/lending_fUST_20250524
["ID","MTS","AMOUNT","RATE_DAILY","PERIOD"]
[362188937,1748076635470,-307.31472616,0.00023013,3]
[362188938,1748076635479,-430.0,0.00023013,3]
[362188939,1748076635489,-430.53,0.00023013,3]
[362188940,1748076635500,-430.0,0.00023013,3]
[362188941,1748076635510,-430.0,0.00023013,3]
[362188942,1748076635522,-430.0,0.00023013,3]
[362188943,1748076635534,-430.0,0.00023013,3]
[362188944,1748076635544,-477.51,0.00023013,3]
[362188945,1748076635554,-430.0,0.00023013,3]
[362188946,1748076635564,-725.08,0.00023013,3]
[362188947,1748076635574,-1440.78,0.00023013,3]
[362188948,1748076635584,-918.77,0.00023013,3]
[362188949,1748076635594,-430.0,0.00023013,3]
[362188950,1748076635604,-430.0,0.00023013,3]
[362188951,1748076635613,-889.69,0.00023013,3]
[362188952,1748076635622,-430.0,0.00023013,2]
[362188953,1748076635632,-500.0,0.0002303,2]
[362188954,1748076635641,-500.0,0.00023083,2]
[362188955,1748076635651,-153.0,0.0002326,2]
[362188956,1748076635661,-153.0,0.0002326,2]
[362188957,1748076635670,-430.0,0.00023287,3]
[362188958,1748076635680,-563.61,0.00023287,3]
[362188959,1748076635690,-576.99,0.00023287,3]
[362188960,1748076635699,-1261.59,0.00023287,3]
[362188961,1748076635709,-845.22,0.00023287,3]
[362188962,1748076635719,-430.0,0.00023287,3]
[362188963,1748076635729,-430.53,0.00023287,3]
[362188964,1748076635738,-430.0,0.00023287,3]
[362188965,1748076635748,-430.0,0.00023287,3]
[362188966,1748076635757,-430.0,0.00023287,3]
[362188967,1748076635767,-477.51,0.00023287,3]
[362188968,1748076635776,-430.0,0.00023287,3]
[362188969,1748076635786,-725.08,0.00023287,3]
[362188970,1748076635795,-1440.78,0.00023287,3]
[362188971,1748076635804,-918.77,0.00023287,3]
[362188972,1748076635813,-430.0,0.00023287,3]
[362188973,1748076635822,-430.0,0.00023287,3]
[362188974,1748076635832,-889.69,0.00023287,3]
[362188975,1748076635842,-430.0,0.00023287,2]
[362188976,1748076635851,-160.0,0.00023301,3]
[362188977,1748076635862,-519.2229373,0.00023561,3]
[362188978,1748076635871,-563.61,0.00023561,3]
[362188979,1748076635881,-576.99,0.00023561,3]
[362188980,1748076635890,-1261.59,0.00023561,3]
[362188981,1748076635901,-845.22,0.00023561,3]
[362188982,1748076635910,-430.0,0.00023561,3]
[362188983,1748076635921,-430.53,0.00023561,3]
[362188984,1748076635930,-430.0,0.00023561,3]
[362188985,1748076635941,-430.0,0.00023561,3]
[362188986,1748076635950,-430.0,0.00023561,3]
[362188987,1748076635963,-477.51,0.00023561,3]
[362188988,1748076635973,-430.0,0.00023561,3]
[362188989,1748076635983,-725.08,0.00023561,3]
[362188990,1748076635992,-1440.78,0.00023561,3]
[362188991,1748076636005,-918.77,0.00023561,3]
[362188992,1748076636014,-430.0,0.00023561,3]
[362188993,1748076636023,-430.0,0.00023561,3]
[362188994,1748076636033,-889.69,0.00023561,3]
[362188995,1748076636042,-430.0,0.00023561,2]
[362188996,1748076636053,-1290.08973248,0.00023759,2]
[362188997,1748076636062,-215.0738,0.00023828,2]
[362188998,1748076636072,-563.61,0.00023835,3]
[362188999,1748076636082,-576.99,0.00023835,3]
[362189000,1748076636092,-1261.59,0.00023835,3]
[362189001,1748076636102,-845.22,0.00023835,3]
[362189002,1748076636112,-430.0,0.00023835,3]
[362189003,1748076636121,-430.53,0.00023835,3]
[362189004,1748076636131,-430.0,0.00023835,3]
[362189005,1748076636140,-430.0,0.00023835,3]
[362189006,1748076636149,-430.0,0.00023835,3]
[362189007,1748076636159,-477.51,0.00023835,3]
[362189008,1748076636168,-430.0,0.00023835,3]
[362189009,1748076636178,-725.08,0.00023835,3]
[362189010,1748076636189,-1440.78,0.00023835,3]
[362189011,1748076636198,-918.77,0.00023835,3]
[362189012,1748076636209,-430.0,0.00023835,3]
[362189013,1748076636219,-430.0,0.00023835,3]
[362189014,1748076636228,-889.69,0.00023835,3]
[362189015,1748076636238,-430.0,0.00023835,2]
[362189016,1748076636247,-499.999999,0.0002387,2]
[362189017,1748076636257,-250.0,0.00023901,2]
[362189018,1748076636266,-500.0,0.00023959,2]
[362189019,1748076636275,-13526.49956697,0.00024,2]
[362189020,1748076636369,-1219.74313515,0.00024,2]
[362189029,1748076638550,-430.0,0.00021917,3]
[362189030,1748076638560,-430.0,0.00022191,3]
[362189031,1748076638569,-430.0,0.00022465,3]
[362189033,1748076638579,-430.0,0.00022739,3]
[362189034,1748076638589,-430.0,0.00023013,3]
[362189035,1748076638598,-430.0,0.00023287,3]
[362189037,1748076638608,-430.0,0.00023561,3]
[362189039,1748076638617,-430.0,0.00023835,3]
[362189040,1748076638626,-1772.27419172,0.00024,2]
[362189042,1748076638638,-3141.60028293,0.00024,2]
[362189044,1748076638650,-21352.52090274,0.00024,2]
[362189048,1748076638661,-1922.38994958,0.00024,2]
[362189050,1748076638671,-398.04150106,0.00024109,3]
[362189754,1748076675473,5003.142,0.00024649,30]
[362189758,1748077037966,4898.34200785,0.00024,30]
[362189759,1748077040190,200.0,0.00011,2]
[362189760,1748077040968,-161.481596,0.00013699,2]
[362189761,1748077044568,508.57096495,0.00024657,30]
[362189804,1748077831978,-295.3560862,0.00020914,2]
[362189806,1748077831988,-348.73645842,0.00021258,2]
[362189808,1748077831998,-200.60385522,0.00021817,2]
[362189810,1748077832008,-160.0,0.00021886,2]
[362189812,1748077832018,-300.0,0.00021908,2]
[362189814,1748077832028,-300.0,0.00021908,2]
[362189816,1748077832037,-1200.0,0.00021908,2]
[362189818,1748077832047,-157.85,0.00021911,2]
[362189820,1748077832056,-280.845,0.00021915,2]
[362189822,1748077832066,-177.98232408,0.00021915,2]
[362189825,1748077832075,-500.0,0.00021916,2]
[362189827,1748077832084,-430.0,0.00021917,3]
[362189829,1748077832093,-430.0,0.00021917,3]
[362189836,1748077832244,-430.0,0.00021917,3]
[362189838,1748077832255,-430.0,0.00021917,3]
[362189839,1748077832264,-430.0,0.00021917,3]
[362189840,1748077832274,-420.60112534,0.00021917,3]
[362189841,1748077832283,-301.72768799,0.00021917,3]
[362189842,1748077832292,-430.0,0.00021917,3]
[362189843,1748077832301,-450.0,0.00021917,3]
[362189844,1748077832310,-450.0,0.00021917,3]
[362189845,1748077832319,-430.0,0.00021917,3]
[362189846,1748077832328,-300.0,0.00021917,3]
[362189847,1748077832337,-400.0,0.00021917,3]
[362189848,1748077832349,-430.0,0.00021917,3]
[362189849,1748077832358,-430.0,0.00021917,3]
[362189850,1748077832367,-408.17474952,0.00021917,3]
[362189851,1748077832376,-405.49260304,0.00021917,3]
[362189852,1748077832386,-400.0,0.00021917,3]
[362189853,1748077832396,-401.74378065,0.00021917,3]
[362189854,1748077832406,-401.06920622,0.00021917,3]
[362189855,1748077832416,-400.0,0.00021917,3]
[362189856,1748077832427,-430.0,0.00021917,3]
[362189857,1748077832436,-430.0,0.00021917,3]
[362189858,1748077832446,-430.0,0.00021917,3]
[362189859,1748077832455,-451.57301229,0.00021917,3]
[362189860,1748077832465,-401.78527147,0.00021917,3]
[362189861,1748077832475,-430.0,0.00021917,3]
[362189862,1748077832484,-430.0,0.00021917,3]
[362189863,1748077832493,-400.81391833,0.00021917,3]
[362189864,1748077832503,-400.8738898,0.00021917,3]
[362189865,1748077832513,-430.0,0.00021917,3]
[362189866,1748077832523,-219.46690057,0.00021917,3]
[362189867,1748077832532,-430.0,0.00021917,3]
[362189868,1748077832542,-430.0,0.00021917,3]
[362189869,1748077832552,-430.0,0.00021917,3]
[362189870,1748077832561,-430.0,0.00021917,3]
[362189871,1748077832572,-430.0,0.00021917,3]
[362189872,1748077832581,-430.0,0.00021917,3]
[362189873,1748077832591,-430.0,0.00021917,3]
[362189874,1748077832600,-430.0,0.00021917,3]
[362189875,1748077832609,-203.22028339,0.00021917,3]
[362189876,1748077832619,-430.0,0.00021917,3]
[362189877,1748077832628,-430.0,0.00021917,3]
[362189878,1748077832637,-430.0,0.00021917,3]
[362189879,1748077832646,-430.0,0.00021917,3]
[362189880,1748077832656,-211.55751323,0.00021917,3]
[362189881,1748077832666,-272.47901835,0.00021917,3]
[362189882,1748077832676,-430.0,0.00021917,3]
[362189883,1748077832685,-430.0,0.00021917,3]
[362189884,1748077832695,-430.0,0.00021917,3]
[362189885,1748077832707,-430.0,0.00021917,3]
[362189886,1748077832717,-433.50589293,0.00021917,3]
[362189887,1748077832727,-430.0,0.00021917,3]
[362189888,1748077832736,-430.0,0.00021917,3]
[362189889,1748077832745,-407.77714249,0.00021917,3]
[362189890,1748077832755,-430.0,0.00021917,3]
[362189891,1748077832764,-400.85864954,0.00021917,3]
[362189892,1748077832773,-430.0,0.00021917,3]
[362189893,1748077832783,-400.0,0.00021917,3]
[362189894,1748077832794,-487.0002271,0.00021917,3]
[362189895,1748077832803,-407.08946938,0.00021917,3]
[362189896,1748077832812,-430.0,0.00021917,3]
[362189897,1748077832822,-450.0,0.00021917,3]
[362189898,1748077832831,-430.0,0.00021917,3]
[362189899,1748077832841,-430.0,0.00021917,3]
[362189900,1748077832851,-400.0,0.00021917,3]
[362189901,1748077832860,-430.0,0.00021917,3]
[362189902,1748077832871,-430.0,0.00021917,3]
[362189903,1748077832880,-430.0,0.00021917,3]
[362189904,1748077832890,-430.0,0.00021917,3]
[362189905,1748077832899,-430.0,0.00021917,3]
[362189906,1748077832909,-430.0,0.00021917,3]
[362189907,1748077832919,-360.0,0.00021917,3]
[362189908,1748077832928,-430.0,0.00021917,3]
[362189909,1748077832938,-430.0,0.00021917,3]
[362189910,1748077832948,-430.0,0.00021917,3]
[362189911,1748077832958,-430.0,0.00021917,3]
[362189912,1748077832967,-430.0,0.00021917,3]
[362189913,1748077832976,-430.0,0.00021917,3]
[362189914,1748077832987,-430.0,0.00021917,3]
[362189915,1748077832996,-430.0,0.00021917,3]
[362189916,1748077833006,-430.0,0.00021917,3]
[362189917,1748077833016,-430.0,0.00021917,3]
[362189918,1748077833025,-430.0,0.00021917,3]
[362189919,1748077833035,-430.0,0.00021917,3]
[362189920,1748077833044,-432.01012934,0.00021917,3]
[362189921,1748077833053,-430.0,0.00021917,3]
[362189922,1748077833063,-430.0,0.00021917,3]
[362189923,1748077833073,-430.0,0.00021917,3]
[362189924,1748077833083,-400.0,0.00021917,3]
[362189925,1748077833093,-430.0,0.00021917,3]
[362189926,1748077833103,-342.48302045,0.00021917,3]
[362189927,1748077833113,-430.0,0.00021917,3]
[362189928,1748077833123,-894.64583333,0.00021917,3]
[362189929,1748077833133,-400.56647632,0.00021917,3]
[362189930,1748077833143,-430.0,0.00021917,3]
[362189931,1748077833153,-430.0,0.00021917,3]
[362189932,1748077833163,-430.0,0.00021917,3]
[362189933,1748077833173,-401.24960383,0.00021917,3]
[362189934,1748077833182,-430.0,0.00021917,3]
[362189935,1748077833192,-435.81729814,0.00021917,3]
[362189936,1748077833202,-430.0,0.00021917,3]
[362189937,1748077833211,-398.63942026,0.00021917,3]
[362189938,1748077833221,-430.0,0.00021917,3]
[362189939,1748077833232,-430.0,0.00021917,3]
[362189940,1748077833242,-277.62882992,0.00021917,3]
[362189941,1748077833252,-430.0,0.00021917,3]
[362189942,1748077833262,-430.0,0.00021917,3]
[362189943,1748077833273,-430.0,0.00021917,3]
[362189944,1748077833283,-421.59719,0.00021917,3]
[362189945,1748077833294,-350.0,0.00021917,3]
[362189946,1748077833303,-430.0,0.00021917,3]
[362189947,1748077833313,-430.0,0.00021917,3]
[362189948,1748077833323,-430.0,0.00021917,3]
[362189949,1748077833333,-430.0,0.00021917,3]
[362189950,1748077833343,-430.0,0.00021917,3]
[362189951,1748077833356,-350.0,0.00021917,3]
[362189952,1748077833366,-430.0,0.00021917,3]
[362189953,1748077833376,-450.0,0.00021917,3]
[362189954,1748077833385,-400.0,0.00021917,3]
[362189955,1748077833396,-430.0,0.00021917,3]
[362189956,1748077833405,-430.0,0.00021917,3]
[362189957,1748077833415,-430.0,0.00021917,3]
[362189958,1748077833425,-298.29153053,0.00021917,3]
[362189959,1748077833440,-101.70846947,0.00021917,3]
[362189960,1748077833450,-430.0,0.00021917,3]
[362189961,1748077833460,-450.0,0.00021917,3]
[362189962,1748077833469,-430.0,0.00021917,3]
[362189963,1748077833479,-430.0,0.00021917,3]
[362189964,1748077833489,-430.0,0.00021917,3]
[362189965,1748077833499,-430.0,0.00021917,3]
[362189966,1748077833509,-563.48,0.00021917,3]
[362189967,1748077833519,-430.0,0.00021917,3]
[362189968,1748077833529,-430.0,0.00021917,3]
[362189969,1748077833539,-458.34631231,0.00021917,3]
[362189970,1748077833549,-430.0,0.00021917,3]
[362189971,1748077833558,-430.0,0.00021917,3]
[362189972,1748077833568,-400.0,0.00021917,3]
[362189973,1748077833578,-430.0,0.00021917,3]
[362189974,1748077833587,-430.0,0.00021917,3]
[362189975,1748077833596,-430.0,0.00021917,3]
[362189976,1748077833605,-430.0,0.00021917,3]
[362189977,1748077833615,-430.0,0.00021917,3]
[362189978,1748077833624,-841.06,0.00021917,3]
[362189979,1748077833634,-430.0,0.00021917,3]
[362189980,1748077833644,-430.0,0.00021917,3]
[362189981,1748077833653,-430.0,0.00021917,3]
[362189982,1748077833663,-430.0,0.00021917,3]
[362189983,1748077833673,-430.0,0.00021917,3]
[362189984,1748077833683,-430.0,0.00021917,3]
[362189985,1748077833692,-430.0,0.00021917,3]
[362189986,1748077833701,-435.64955504,0.00021917,3]
[362189987,1748077833711,-300.0,0.00021917,3]
[362189988,1748077833721,-430.0,0.00021917,3]
[362189989,1748077833731,-430.0,0.00021917,3]
[362189990,1748077833741,-430.0,0.00021917,3]
[362189991,1748077833750,-400.0,0.00021917,3]
[362189992,1748077833760,-430.0,0.00021917,3]
[362189993,1748077833769,-430.0,0.00021917,3]
[362189994,1748077833778,-430.0,0.00021917,3]
[362189995,1748077833788,-430.0,0.00021917,3]
[362189996,1748077833797,-430.0,0.00021917,3]
[362189997,1748077833807,-494.83404004,0.00021917,3]
[362189998,1748077833817,-430.0,0.00021917,3]
[362189999,1748077833826,-430.0,0.00021917,3]
[362190000,1748077833835,-400.0,0.00021917,3]
[362190001,1748077833845,-430.0,0.00021917,3]
[362190002,1748077833854,-421.25219529,0.00021917,3]
[362190003,1748077833864,-430.0,0.00021917,3]
[362190004,1748077833874,-415.7923205,0.00021917,3]
[362190005,1748077833884,-430.0,0.00021917,3]
[362190006,1748077833893,-430.0,0.00021917,3]
[362190007,1748077833902,-340.0,0.00021917,3]
[362190008,1748077833911,-430.0,0.00021917,3]
[362190009,1748077833921,-430.0,0.00021917,3]
[362190010,1748077833930,-500.0,0.00021917,3]
[362190011,1748077833939,-430.0,0.00021917,3]
[362190012,1748077833949,-368.99271537,0.00021917,3]
[362190013,1748077833959,-430.0,0.00021917,3]
[362190014,1748077833968,-430.0,0.00021917,3]
[362190015,1748077833977,-430.0,0.00021917,3]
[362190016,1748077833987,-430.0,0.00021917,3]
[362190017,1748077833997,-506.45264645,0.00021917,3]
[362190018,1748077834006,-430.0,0.00021917,3]
[362190019,1748077834016,-430.0,0.00021917,3]
[362190020,1748077834026,-430.0,0.00021917,3]
[362190021,1748077834036,-430.0,0.00021917,3]
[362190022,1748077834046,-430.0,0.00021917,3]
[362190023,1748077834056,-430.0,0.00021917,3]
[362190024,1748077834065,-430.0,0.00021917,3]
[362190025,1748077834075,-430.0,0.00021917,3]
[362190026,1748077834086,-430.0,0.00021917,3]
[362190027,1748077834097,-430.0,0.00021917,3]
[362190028,1748077834107,-430.0,0.00021917,3]
[362190029,1748077834117,-430.0,0.00021917,3]
[362190030,1748077834132,-483.38,0.00021917,3]
[362190031,1748077834143,-433.32354004,0.00021917,3]
[362190032,1748077834153,-430.0,0.00021917,3]
[362190033,1748077834163,-430.0,0.00021917,3]
[362190034,1748077834174,-430.0,0.00021917,3]
[362190035,1748077834183,-310.20887027,0.00021917,3]
[362190036,1748077834193,-431.68307905,0.00021917,3]
[362190037,1748077834203,-430.0,0.00021917,3]
[362190038,1748077834213,-407.84,0.00021917,3]
[362190039,1748077834223,-430.0,0.00021917,3]
[362190040,1748077834234,-430.0,0.00021917,3]
[362190041,1748077834243,-470.0,0.00021917,3]
[362190042,1748077834253,-430.0,0.00021917,3]
[362190043,1748077834264,-612.51,0.00021917,3]
[362190044,1748077834274,-960.91,0.00021917,3]
[362190045,1748077834284,-4186.37,0.00021917,2]
[362190046,1748077834294,-400.0,0.00021917,3]
[362190047,1748077834304,-320.0,0.00021917,3]
[362190048,1748077834314,-593.13,0.00021917,3]
[362190049,1748077834324,-430.0,0.00021917,2]
[362190050,1748077834334,-430.0,0.00021917,3]
[362190051,1748077834345,-563.88517945,0.00022,2]
[362190052,1748077834358,-152.0,0.00022009,2]
[362190053,1748077834368,-500.0,0.0002219,2]
[362190054,1748077834382,-430.0,0.00022191,3]
[362190055,1748077834394,-431.14582153,0.00022191,3]
[362190056,1748077834405,-430.0,0.00022191,3]
[362190057,1748077834416,-431.39593358,0.00022191,3]
[362190058,1748077834427,-430.0,0.00022191,3]
[362190059,1748077834438,-430.0,0.00022191,3]
[362190060,1748077834449,-563.48,0.00022191,3]
[362190061,1748077834460,-841.06,0.00022191,3]
[362190062,1748077834470,-379.51204268,0.00022191,3]
[362190063,1748077834481,-430.0,0.00022191,3]
[362190064,1748077834490,-430.0,0.00022191,3]
[362190065,1748077834500,-430.0,0.00022191,3]
[362190066,1748077834509,-430.0,0.00022191,3]
[362190067,1748077834520,-430.0,0.00022191,3]
[362190068,1748077834529,-430.0,0.00022191,3]
[362190069,1748077834538,-483.38,0.00022191,3]
[362190070,1748077834548,-430.0,0.00022191,3]
[362190071,1748077834558,-430.0,0.00022191,3]
[362190072,1748077834567,-612.51,0.00022191,3]
[362190073,1748077834577,-960.91,0.00022191,3]
[362190074,1748077834587,-593.13,0.00022191,3]
[362190075,1748077834596,-430.0,0.00022191,2]
[362190076,1748077834606,-430.0,0.00022191,3]
[362190077,1748077834615,-207.4,0.00022197,2]
[362190078,1748077834630,-218.31957017,0.00022365,2]
[362190079,1748077834640,-500.0,0.00022464,2]
[362190080,1748077834650,-500.0,0.00022464,2]
[362190081,1748077834659,-430.0,0.00022465,3]
[362190082,1748077834670,-430.0,0.00022465,3]
[362190083,1748077834679,-563.48,0.00022465,3]
[362190084,1748077834688,-841.06,0.00022465,3]
[362190085,1748077834698,-430.0,0.00022465,3]
[362190086,1748077834707,-430.0,0.00022465,3]
[362190087,1748077834716,-430.0,0.00022465,3]
[362190088,1748077834726,-430.0,0.00022465,3]
[362190089,1748077834735,-430.0,0.00022465,3]
[362190090,1748077834744,-430.0,0.00022465,3]
[362190091,1748077834753,-483.38,0.00022465,3]
[362190092,1748077834762,-430.0,0.00022465,3]
[362190093,1748077834772,-278.40207684,0.00022465,3]
[362190094,1748077834781,-612.51,0.00022465,3]
[362190095,1748077834791,-960.91,0.00022465,3]
[362190096,1748077834800,-593.13,0.00022465,3]
[362190097,1748077834810,-430.0,0.00022465,2]
[362190098,1748077834820,-430.0,0.00022465,3]
[362190099,1748077834829,-500.0,0.00022495,2]
[362190100,1748077834839,-430.0,0.00022739,3]
[362190101,1748077834848,-430.0,0.00022739,3]
[362190102,1748077834955,-563.48,0.00022739,3]
[362190103,1748077834965,-841.06,0.00022739,3]
[362190104,1748077834975,-430.0,0.00022739,3]
[362190105,1748077834985,-430.0,0.00022739,3]
[362190106,1748077834995,-430.0,0.00022739,3]
[362190107,1748077835005,-430.0,0.00022739,3]
[362190108,1748077835016,-430.0,0.00022739,3]
[362190109,1748077835026,-430.0,0.00022739,3]
[362190110,1748077835035,-483.38,0.00022739,3]
[362190111,1748077835045,-430.0,0.00022739,3]
[362190112,1748077835055,-612.51,0.00022739,3]
[362190113,1748077835065,-960.91,0.00022739,3]
[362190114,1748077835075,-593.13,0.00022739,3]
[362190115,1748077835084,-430.0,0.00022739,2]
[362190116,1748077835094,-430.0,0.00022739,3]
[362190117,1748077835103,-153.9,0.00022873,2]
[362190118,1748077835113,-622.01129809,0.00022904,2]
[362190119,1748077835125,-218.31957016,0.00022949,2]
[362190120,1748077835135,-500.0,0.00022999,2]
[362190121,1748077835144,-500.0,0.00022999,2]
[362190122,1748077835153,-500.0,0.00022999,2]
[362190123,1748077835162,-500.0,0.00022999,2]
[362190124,1748077835172,-500.0,0.00022999,2]
[362190125,1748077835182,-500.0,0.00022999,2]
[362190126,1748077835191,-532.75746338,0.00022999,2]
[362190127,1748077835200,-500.0,0.00022999,2]
[362190128,1748077835210,-239.74605348,0.00022999,2]
[362190129,1748077835220,-500.0,0.00022999,2]
[362190130,1748077835229,-326.32904884,0.00022999,2]
[362190131,1748077835239,-500.0,0.00022999,2]
[362190132,1748077835250,-500.0,0.00022999,2]
[362190133,1748077835260,-500.0,0.00022999,2]
[362190134,1748077835269,-500.0,0.00022999,2]
[362190135,1748077835278,-500.0,0.00022999,2]
[362190136,1748077835288,-500.0,0.00022999,2]
[362190137,1748077835297,-500.0,0.00022999,2]
[362190138,1748077835307,-500.0,0.00022999,2]
[362190139,1748077835317,-2000.0,0.00023,3]
[362190140,1748077835326,-19379.84709253,0.00023,2]
[362190141,1748077835419,-569.45124166,0.00023,2]
[362190173,1748077838041,-221.57796032,0.000219,6]
[362190175,1748077838051,-500.0,0.00021908,2]
[362190176,1748077838061,-500.0,0.00021908,2]
[362190177,1748077838070,-500.0,0.00021908,2]
[362190178,1748077838079,-500.0,0.00021908,2]
[362190179,1748077838089,-500.0,0.00021908,2]
[362190180,1748077838098,-500.0,0.00021908,2]
[362190181,1748077838108,-500.0,0.00021908,2]
[362190182,1748077838117,-500.0,0.00021908,2]
[362190183,1748077838130,-500.0,0.00021908,2]
[362190184,1748077838140,-500.0,0.00021908,2]
[362190185,1748077838149,-500.0,0.00021908,2]
[362190187,1748077838158,-500.0,0.00021908,2]
[362190189,1748077838167,-500.0,0.00021908,2]
[362190191,1748077838177,-500.0,0.00021908,2]
[362190193,1748077838187,-500.0,0.00021908,2]
[362190195,1748077838196,-500.0,0.00021908,2]
[362190198,1748077838205,-500.0,0.00021908,2]
[362190201,1748077838214,-500.0,0.00021908,2]
[362190204,1748077838223,-500.0,0.00021908,2]
[362190205,1748077838232,-500.0,0.00021908,2]
[362190208,1748077838241,-582.90958486,0.00021908,2]
[362190209,1748077838250,-500.0,0.00021908,2]
[362190211,1748077838259,-500.0,0.00021908,2]
[362190213,1748077838269,-500.0,0.00021908,2]
[362190215,1748077838279,-500.0,0.00021908,2]
[362190217,1748077838288,-500.0,0.00021908,2]
[362190219,1748077838298,-211.25840745,0.00021908,2]
[362190221,1748077838307,-500.0,0.00021908,2]
[362190223,1748077838316,-500.0,0.00021908,2]
[362190225,1748077838325,-500.0,0.00021908,2]
[362190226,1748077838334,-500.0,0.00021908,2]
[362190227,1748077838344,-500.0,0.00021908,2]
[362190228,1748077838356,-500.0,0.00021908,2]
[362190229,1748077838366,-500.0,0.00021908,2]
[362190230,1748077838377,-500.0,0.00021908,2]
[362190231,1748077838386,-500.0,0.00021908,2]
[362190232,1748077838395,-500.0,0.00021908,2]
[362190233,1748077838404,-500.0,0.00021908,2]
[362190234,1748077838413,-500.0,0.00021908,2]
[362190235,1748077838423,-422.30007223,0.00021908,2]
[362190236,1748077838434,-500.0,0.00021908,2]
[362190237,1748077838445,-356.13937579,0.00021908,2]
[362190238,1748077838454,-500.0,0.00021908,2]
[362190239,1748077838464,-500.0,0.00021908,2]
[362190240,1748077838474,-500.0,0.00021908,2]
[362190241,1748077838483,-500.0,0.00021908,2]
[362190242,1748077838492,-500.0,0.00021908,2]
[362190243,1748077838502,-500.0,0.00021908,2]
[362190244,1748077838512,-500.0,0.00021908,2]
[362190245,1748077838521,-500.0,0.00021908,2]
[362190246,1748077838531,-500.0,0.00021908,2]
[362190247,1748077838540,-500.0,0.00021908,2]
[362190248,1748077838550,-500.0,0.00021908,2]
[362190249,1748077838560,-500.0,0.00021908,2]
[362190250,1748077838570,-500.0,0.00021908,2]
[362190251,1748077838579,-500.0,0.00021908,2]
[362190252,1748077838589,-500.0,0.00021908,2]
[362190253,1748077838598,-500.0,0.00021908,2]
[362190254,1748077838607,-500.0,0.00021908,2]
[362190255,1748077838617,-500.0,0.00021908,2]
[362190256,1748077838628,-500.0,0.00021908,2]
[362190257,1748077838637,-553.30239251,0.00021908,2]
[362190258,1748077838646,-500.0,0.00021908,2]
[362190259,1748077838656,-500.0,0.00021908,2]
[362190260,1748077838666,-500.0,0.00021908,2]
[362190261,1748077838675,-500.0,0.00021908,2]
[362190262,1748077838684,-500.0,0.00021908,2]
[362190263,1748077838694,-500.0,0.00021908,2]
[362190264,1748077838705,-500.0,0.00021908,2]
[362190265,1748077838714,-500.0,0.00021908,2]
[362190266,1748077838723,-500.0,0.00021908,2]
[362190267,1748077838733,-500.0,0.00021908,2]
[362190268,1748077838742,-500.0,0.00021908,2]
[362190269,1748077838752,-500.0,0.00021908,2]
[362190270,1748077838761,-500.0,0.00021908,2]
[362190271,1748077838771,-500.0,0.00021908,2]
[362190272,1748077838781,-500.0,0.00021908,2]
[362190273,1748077838790,-500.0,0.00021908,2]
[362190274,1748077838800,-86277.95448234,0.00023,2]